[Event "Chess Festival Groningen 2023 | A"]
[Site "Groningen, Netherlands"]
[Date "2023.12.28"]
[Round "7.14"]
[White "Slagboom, Leandro"]
[Black "Van Foreest, Machteld"]
[Result "1/2-1/2"]
[TimeControl "90min/40moves + 30min + 30sec/move"]
[WhiteElo "2304"]
[BlackElo "2344"]

1. e4 {[%clk 01:30:58]} {[%emt 00:00:02]} c6 {[%clk 01:30:47]} {[%emt
00:00:13]} 2. d4 {[%clk 01:31:22]} {[%emt 00:00:05]} d5 {[%clk 01:31:14]}
{[%emt 00:00:04]} 3. e5 {[%clk 01:31:47]} {[%emt 00:00:05]} c5 {[%clk
01:31:41]} {[%emt 00:00:03]} 4. c3 {[%clk 01:31:44]} {[%emt 00:00:33]} Nc6
{[%clk 01:31:09]} {[%emt 00:01:02]} 5. Be2 {[%clk 01:31:55]} {[%emt 00:00:18]}
cxd4 {[%clk 01:23:05]} {[%emt 00:08:34]} 6. cxd4 {[%clk 01:32:19]} {[%emt
00:00:06]} Bf5 {[%clk 01:22:32]} {[%emt 00:01:02]} 7. Nc3 {[%clk 01:32:32]}
{[%emt 00:00:16]} e6 {[%clk 01:21:13]} {[%emt 00:01:49]} 8. Be3 {[%clk
01:32:50]} {[%emt 00:00:12]} Rc8 {[%clk 01:11:59]} {[%emt 00:09:45]} 9. Rc1
{[%clk 01:31:00]} {[%emt 00:02:20]} Bb4 {[%clk 01:07:45]} {[%emt 00:04:44]} 10.
a3 {[%clk 01:30:37]} {[%emt 00:00:53]} Bxc3+ {[%clk 01:06:56]} {[%emt
00:01:20]} 11. Rxc3 {[%clk 01:31:00]} {[%emt 00:00:07]} Nge7 {[%clk 01:06:58]}
{[%emt 00:00:28]} 12. Nf3 {[%clk 01:27:08]} {[%emt 00:04:22]} O-O {[%clk
01:04:48]} {[%emt 00:02:41]} 13. O-O {[%clk 01:19:00]} {[%emt 00:08:37]} Qd7
{[%clk 00:52:01]} {[%emt 00:13:17]} 14. Qd2 {[%clk 01:04:09]} {[%emt 00:15:19]}
Nb8 {[%clk 00:44:59]} {[%emt 00:07:33]} 15. Rfc1 {[%clk 01:01:33]} {[%emt
00:03:06]} Rxc3 {[%clk 00:45:03]} {[%emt 00:00:27]} 16. Rxc3 {[%clk 01:01:39]}
{[%emt 00:00:24]} Rc8 {[%clk 00:45:27]} {[%emt 00:00:07]} 17. Bg5 {[%clk
01:01:34]} {[%emt 00:00:34]} Nbc6 {[%clk 00:37:56]} {[%emt 00:08:01]} 18. Bb5
{[%clk 00:54:01]} {[%emt 00:08:03]} Be4 {[%clk 00:34:44]} {[%emt 00:03:42]} 19.
Bxe7 {[%clk 00:37:40]} {[%emt 00:16:52]} Qxe7 {[%clk 00:34:29]} {[%emt
00:00:45]} 20. Bxc6 {[%clk 00:21:25]} {[%emt 00:16:46]} Rxc6 {[%clk 00:34:09]}
{[%emt 00:00:49]} 21. Rxc6 {[%clk 00:20:24]} {[%emt 00:01:30]} bxc6 {[%clk
00:34:38]} {[%emt 00:00:02]} 22. Qc3 {[%clk 00:18:41]} {[%emt 00:02:13]} Bxf3
{[%clk 00:34:39]} {[%emt 00:00:28]} 23. gxf3 {[%clk 00:16:25]} {[%emt
00:02:46]} 1/2-1/2

[Event "Chess Festival Groningen 2023 | A"]
[Site "Groningen, Netherlands"]
[Date "2023.12.28"]
[Round "7.15"]
[White "Stremavicius, Pijus"]
[Black "Mierins, Emils Janis"]
[Result "1-0"]
[TimeControl "90min/40moves + 30min + 30sec/move"]
[WhiteElo "2367"]
[BlackElo "2258"]

1. b3 {[%clk 01:30:55]} {[%emt 00:00:05]} d5 {[%clk 01:29:06]} {[%emt
00:01:54]} 2. Bb2 {[%emt 00:00:20]} c5 {[%clk 01:29:23]} 3. e3 {[%clk
01:31:39]} {[%emt 00:00:08]} Nf6 {[%clk 01:29:43]} {[%emt 00:00:10]} 4. Nf3
{[%clk 01:31:58]} {[%emt 00:00:11]} e6 {[%clk 01:25:33]} {[%emt 00:04:40]} 5.
c4 {[%clk 01:31:36]} {[%emt 00:00:52]} Be7 {[%clk 01:25:06]} {[%emt 00:00:57]}
6. cxd5 {[%clk 01:31:41]} {[%emt 00:00:25]} exd5 {[%clk 01:25:32]} {[%emt
00:00:04]} 7. Be2 {[%clk 01:31:13]} {[%emt 00:00:57]} O-O {[%clk 01:25:50]}
{[%emt 00:00:11]} 8. O-O {[%clk 01:31:39]} {[%emt 00:00:04]} Nc6 {[%clk
01:24:48]} {[%emt 00:01:33]} 9. d4 {[%clk 01:32:05]} {[%emt 00:00:04]} Ne4
{[%clk 01:03:32]} {[%emt 00:21:46]} 10. dxc5 {[%clk 01:32:03]} {[%emt
00:00:32]} Bxc5 {[%clk 01:03:49]} {[%emt 00:00:12]} 11. Nc3 {[%clk 01:29:14]}
{[%emt 00:03:19]} Be6 {[%clk 01:04:14]} {[%emt 00:00:05]} 12. Rc1 {[%clk
01:28:06]} {[%emt 00:01:38]} Bb6 {[%clk 01:02:44]} {[%emt 00:02:00]} 13. Nb5
{[%clk 01:22:02]} {[%emt 00:06:34]} Rc8 {[%clk 00:59:27]} {[%emt 00:03:46]} 14.
Nbd4 {[%clk 01:22:18]} {[%emt 00:00:14]} Qe7 {[%clk 00:58:20]} {[%emt
00:01:36]} 15. Nxc6 {[%clk 01:14:39]} {[%emt 00:08:10]} Rxc6 {[%clk 00:56:01]}
{[%emt 00:02:49]} 16. Nd4 {[%clk 01:12:48]} {[%emt 00:02:20]} Rxc1 {[%clk
00:53:33]} {[%emt 00:02:59]} 17. Qxc1 {[%clk 01:13:12]} {[%emt 00:00:06]} Rc8
{[%clk 00:51:16]} {[%emt 00:02:47]} 18. Qa1 {[%clk 01:13:34]} {[%emt 00:00:09]}
Bd7 {[%clk 00:50:31]} {[%emt 00:01:15]} 19. Bd3 {[%clk 01:08:48]} {[%emt
00:05:15]} Qg5 {[%clk 00:47:59]} {[%emt 00:03:01]} 20. Nf3 {[%clk 01:06:19]}
{[%emt 00:02:59]} Qh6 {[%clk 00:45:00]} {[%emt 00:03:29]} 21. Bd4 {[%clk
01:06:22]} {[%emt 00:00:28]} Bg4 {[%clk 00:39:30]} {[%emt 00:06:00]} 22. Rc1
{[%clk 01:03:16]} {[%emt 00:03:35]} Rxc1+ {[%clk 00:37:42]} {[%emt 00:02:18]}
23. Qxc1 {[%clk 01:03:41]} {[%emt 00:00:06]} Qd6 {[%clk 00:37:56]} {[%emt
00:00:15]} 24. Bxb6 {[%clk 01:00:06]} {[%emt 00:04:05]} Qxb6 {[%clk 00:38:16]}
{[%emt 00:00:07]} 25. Nd4 {[%clk 01:00:19]} {[%emt 00:00:20]} Nf6 {[%clk
00:36:41]} {[%emt 00:02:06]} 26. h3 {[%clk 00:59:19]} {[%emt 00:01:29]} Bd7
{[%clk 00:37:00]} {[%emt 00:00:11]} 27. Qa3 {[%clk 00:58:03]} {[%emt 00:01:46]}
g6 {[%clk 00:34:54]} {[%emt 00:02:37]} 28. Qe7 {[%clk 00:58:17]} {[%emt
00:00:16]} Kg7 {[%clk 00:34:52]} {[%emt 00:00:32]} 29. g4 {[%clk 00:57:53]}
{[%emt 00:00:54]} h6 {[%clk 00:34:01]} {[%emt 00:01:21]} 30. b4 {[%clk
00:57:06]} {[%emt 00:01:17]} a5 {[%clk 00:30:56]} {[%emt 00:03:34]} 31. a3
{[%clk 00:56:29]} {[%emt 00:01:07]} axb4 {[%clk 00:31:13]} {[%emt 00:00:13]} 32.
axb4 {[%clk 00:56:58]} {[%emt 00:00:02]} Qa7 {[%clk 00:27:00]} {[%emt
00:04:43]} 33. Bb5 {[%clk 00:55:32]} {[%emt 00:01:54]} Qa1+ {[%clk 00:23:09]}
{[%emt 00:04:21]} 34. Kg2 {[%clk 00:46:21]} {[%emt 00:09:42]} Bxb5 {[%clk
00:23:22]} {[%emt 00:00:17]} 35. Nxb5 {[%clk 00:46:50]} {[%emt 00:00:01]} Ne4
{[%clk 00:22:57]} {[%emt 00:00:55]} 36. Nc7 {[%clk 00:46:51]} {[%emt 00:00:28]}
Ng5 {[%clk 00:16:37]} {[%emt 00:06:49]} 37. h4 {[%clk 00:45:27]} {[%emt
00:01:55]} Qd1 {[%clk 00:16:35]} {[%emt 00:00:32]} 38. Ne8+ {[%clk 00:45:44]}
{[%emt 00:00:13]} 1-0

[Event "Chess Festival Groningen 2023 | A"]
[Site "Groningen, Netherlands"]
[Date "2023.12.28"]
[Round "7.16"]
[White "Sanket, Chakravarty"]
[Black "Toktomushev, Teimur"]
[Result "1/2-1/2"]
[TimeControl "90min/40moves + 30min + 30sec/move"]
[WhiteFideId "25032038"]
[WhiteElo "2361"]
[BlackElo "2249"]

1. e4 {[%clk 01:30:55]} {[%emt 00:00:03]} c5 {[%clk 01:30:56]} {[%emt
00:00:05]} 2. Nf3 {[%clk 01:31:15]} {[%emt 00:00:10]} e6 {[%clk 01:31:21]}
{[%emt 00:00:06]} 3. c3 {[%clk 01:31:32]} {[%emt 00:00:12]} d5 {[%clk
01:31:46]} {[%emt 00:00:06]} 4. exd5 {[%clk 01:31:54]} {[%emt 00:00:07]} Qxd5
{[%clk 01:32:04]} {[%emt 00:00:12]} 5. d4 {[%clk 01:32:10]} {[%emt 00:00:13]}
Nf6 {[%clk 01:32:30]} {[%emt 00:00:05]} 6. Na3 {[%clk 01:32:30]} {[%emt
00:00:10]} Nc6 {[%clk 01:31:47]} {[%emt 00:01:13]} 7. Be3 {[%clk 01:32:27]}
{[%emt 00:00:33]} cxd4 {[%clk 01:31:18]} {[%emt 00:01:00]} 8. Nb5 {[%clk
01:32:43]} {[%emt 00:00:13]} Qd8 {[%clk 01:31:39]} {[%emt 00:00:09]} 9. Nbxd4
{[%clk 01:32:10]} {[%emt 00:01:03]} Nd5 {[%clk 01:29:24]} {[%emt 00:02:45]} 10.
Nxc6 {[%clk 01:31:45]} {[%emt 00:00:54]} bxc6 {[%clk 01:29:47]} {[%emt
00:00:07]} 11. Bd2 {[%clk 01:32:01]} {[%emt 00:00:13]} Qb6 {[%clk 01:03:02]}
{[%emt 00:27:17]} 12. Ne5 {[%clk 01:07:56]} {[%emt 00:24:33]} Qc7 {[%clk
00:53:38]} {[%emt 00:09:55]} 13. Nd3 {[%clk 01:04:32]} {[%emt 00:03:53]} c5
{[%clk 00:42:49]} {[%emt 00:11:20]} 14. c4 {[%clk 00:55:56]} {[%emt 00:09:04]}
Nb4 {[%clk 00:40:26]} {[%emt 00:02:55]} 15. Nxb4 {[%clk 00:43:56]} {[%emt
00:12:30]} cxb4 {[%clk 00:40:53]} {[%emt 00:00:03]} 16. Qg4 {[%clk 00:38:17]}
{[%emt 00:06:08]} Qe5+ {[%clk 00:28:15]} {[%emt 00:13:08]} 17. Be2 {[%clk
00:38:13]} {[%emt 00:00:33]} Bb7 {[%clk 00:22:34]} {[%emt 00:06:13]} 18. O-O-O
{[%clk 00:21:56]} {[%emt 00:16:47]} h5 {[%clk 00:12:19]} {[%emt 00:10:45]} 19.
Qg3 {[%clk 00:21:06]} {[%emt 00:01:19]} Qxe2 {[%clk 00:02:50]} {[%emt
00:10:00]} 20. Qc7 {[%clk 00:21:29]} {[%emt 00:00:07]} Bd6 {[%clk 00:01:47]}
{[%emt 00:01:33]} 21. Qxb7 {[%clk 00:16:06]} {[%emt 00:05:53]} Qxc4+ {[%clk
00:02:06]} {[%emt 00:00:11]} 22. Kb1 {[%clk 00:14:55]} {[%emt 00:01:40]} O-O
{[%clk 00:01:22]} {[%emt 00:01:14]} 23. Qf3 {[%clk 00:12:48]} {[%emt 00:02:38]}
Rac8 {[%clk 00:00:41]} {[%emt 00:01:11]} 24. Qxh5 {[%clk 00:11:58]} {[%emt
00:01:20]} Qc2+ {[%clk 00:00:34]} {[%emt 00:00:37]} 25. Ka1 {[%clk 00:12:26]}
{[%emt 00:00:01]} Rc5 {[%clk 00:00:33]} {[%emt 00:00:31]} 26. Qg4 {[%clk
00:06:38]} {[%emt 00:06:18]} Rfc8 {[%clk 00:00:34]} {[%emt 00:00:30]} 27. Be3
{[%clk 00:05:34]} {[%emt 00:01:33]} Be5 {[%clk 00:00:35]} {[%emt 00:00:28]} 28.
Qxb4 {[%clk 00:05:45]} {[%emt 00:00:19]} R5c6 {[%clk 00:00:34]} {[%emt
00:00:32]} 29. Qb5 {[%clk 00:04:43]} {[%emt 00:01:32]} Bf6 {[%clk 00:00:32]}
{[%emt 00:00:31]} 30. Rb1 {[%clk 00:03:44]} {[%emt 00:01:29]} a6 {[%clk
00:00:33]} {[%emt 00:00:29]} 31. Qb3 {[%clk 00:03:33]} {[%emt 00:00:41]} Qe2
{[%clk 00:00:35]} {[%emt 00:00:28]} 32. Rhe1 {[%clk 00:03:35]} {[%emt
00:00:28]} Qg4 {[%clk 00:00:42]} {[%emt 00:00:23]} 33. g3 {[%clk 00:03:51]}
{[%emt 00:00:13]} a5 {[%clk 00:00:33]} {[%emt 00:00:41]} 34. Rbc1 {[%clk
00:03:22]} {[%emt 00:00:59]} a4 {[%clk 00:00:38]} {[%emt 00:00:25]} 35. Rxc6
{[%clk 00:03:09]} {[%emt 00:00:42]} Rxc6 {[%clk 00:00:38]} {[%emt 00:00:31]} 36.
Qb8+ {[%clk 00:02:05]} {[%emt 00:01:33]} Kh7 {[%clk 00:01:07]} {[%emt
00:00:02]} 37. a3 {[%clk 00:02:31]} {[%emt 00:00:04]} Rc2 {[%clk 00:01:03]}
{[%emt 00:00:33]} 38. Rb1 {[%clk 00:02:59]} {[%emt 00:00:02]} Qe2 {[%clk
00:00:33]} {[%emt 00:01:00]} 39. Qb4 {[%clk 00:02:55]} {[%emt 00:00:34]} Rc4
{[%clk 00:00:32]} {[%emt 00:00:31]} 40. Qd2 {[%clk 00:02:18]} {[%emt 00:01:07]}
Qg4 {[%clk 00:00:34]} {[%emt 00:00:28]} 41. Qd3+ {[%clk 00:29:47]} {[%emt
00:03:00]} Re4 {[%clk 00:24:19]} {[%emt 00:06:46]} 42. Bd4 {[%clk 00:25:50]}
{[%emt 00:04:26]} Qe2 {[%clk 00:24:06]} {[%emt 00:00:44]} 43. Qxe2 {[%clk
00:25:51]} {[%emt 00:00:29]} Rxe2 {[%clk 00:24:35]} {[%emt 00:00:02]} 44. Bxf6
{[%clk 00:25:25]} {[%emt 00:00:55]} gxf6 {[%clk 00:25:02]} {[%emt 00:00:04]} 45.
b4 {[%clk 00:22:35]} {[%emt 00:03:21]} axb3 {[%clk 00:24:54]} {[%emt 00:00:38]}
46. Rxb3 {[%clk 00:23:03]} {[%emt 00:00:01]} Rxf2 {[%clk 00:24:47]} {[%emt
00:00:37]} 47. Rb2 {[%clk 00:23:28]} {[%emt 00:00:05]} Rf5 {[%clk 00:09:37]}
{[%emt 00:15:40]} 48. a4 {[%clk 00:14:11]} {[%emt 00:09:47]} Ra5 {[%clk
00:05:33]} {[%emt 00:04:33]} 49. Ra2 {[%clk 00:14:39]} {[%emt 00:00:02]} f5
{[%clk 00:03:28]} {[%emt 00:02:36]} 50. Kb2 {[%clk 00:14:46]} {[%emt 00:00:23]}
Kg6 {[%clk 00:02:30]} {[%emt 00:01:28]} 51. Kc3 {[%clk 00:15:06]} {[%emt
00:00:10]} e5 {[%clk 00:02:01]} {[%emt 00:01:00]} 52. Kb4 {[%clk 00:15:32]}
{[%emt 00:00:04]} Ra8 {[%clk 00:01:35]} {[%emt 00:00:56]} 53. a5 {[%clk
00:15:55]} {[%emt 00:00:07]} f4 {[%clk 00:00:49]} {[%emt 00:01:16]} 54. gxf4
{[%clk 00:15:30]} {[%emt 00:00:55]} exf4 {[%clk 00:01:05]} {[%emt 00:00:14]} 55.
a6 {[%clk 00:15:55]} {[%emt 00:00:05]} Kf5 {[%clk 00:01:21]} {[%emt 00:00:15]}
56. Kb5 {[%clk 00:16:19]} {[%emt 00:00:06]} f3 {[%clk 00:01:03]} {[%emt
00:00:48]} 57. a7 {[%clk 00:15:32]} {[%emt 00:01:17]} Kf4 {[%clk 00:00:37]}
{[%emt 00:00:56]} 58. Kb6 {[%clk 00:15:49]} {[%emt 00:00:13]} Ke3 {[%clk
00:00:36]} {[%emt 00:00:31]} 59. Kb7 {[%clk 00:16:14]} {[%emt 00:00:05]} f2
{[%clk 00:00:46]} {[%emt 00:00:20]} 60. Ra1 {[%clk 00:16:19]} {[%emt 00:00:25]}
Re8 {[%clk 00:00:34]} {[%emt 00:00:42]} 61. a8=Q {[%clk 00:16:03]} {[%emt
00:00:47]} Rxa8 {[%clk 00:01:01]} {[%emt 00:00:03]} 62. Kxa8 {[%clk 00:16:27]}
{[%emt 00:00:06]} Ke2 {[%clk 00:00:55]} {[%emt 00:00:36]} 63. h4 {[%clk
00:16:53]} {[%emt 00:00:03]} f1=Q {[%clk 00:01:21]} {[%emt 00:00:05]} 64. Rxf1
{[%clk 00:17:20]} {[%emt 00:00:02]} Kxf1 {[%clk 00:01:46]} {[%emt 00:00:05]} 65.
h5 {[%clk 00:17:48]} {[%emt 00:00:01]} f5 {[%clk 00:02:11]} {[%emt 00:00:05]}
66. h6 {[%clk 00:18:17]} {[%emt 00:00:02]} f4 {[%clk 00:02:38]} {[%emt
00:00:04]} 67. h7 {[%clk 00:12:53]} {[%emt 00:05:53]} f3 {[%clk 00:03:03]}
{[%emt 00:00:04]} 68. h8=Q {[%clk 00:13:19]} {[%emt 00:00:04]} f2 {[%clk
00:03:31]} {[%emt 00:00:03]} 69. Qh2 {[%clk 00:13:30]} {[%emt 00:00:18]} Ke1
{[%clk 00:03:51]} {[%emt 00:00:11]} 70. Qg3 {[%clk 00:13:57]} {[%emt 00:00:03]}
Ke2 {[%clk 00:04:16]} {[%emt 00:00:06]} 71. Qg2 {[%clk 00:14:20]} {[%emt
00:00:06]} Ke1 {[%clk 00:04:42]} {[%emt 00:00:04]} 72. Qe4+ {[%clk 00:14:46]}
{[%emt 00:00:03]} Kf1 {[%clk 00:04:51]} {[%emt 00:00:21]} 73. Kb7 {[%clk
00:15:07]} {[%emt 00:00:09]} Kg1 {[%clk 00:05:16]} {[%emt 00:00:05]} 74. Qg4+
{[%clk 00:15:28]} {[%emt 00:00:09]} Kh1 {[%clk 00:04:57]} {[%emt 00:00:50]} 75.
Qf3+ {[%clk 00:15:45]} {[%emt 00:00:12]} Kg1 {[%clk 00:05:23]} {[%emt
00:00:05]} 76. Qg3+ {[%clk 00:16:12]} {[%emt 00:00:02]} Kh1 {[%clk 00:05:48]}
{[%emt 00:00:05]} 77. Qxf2 {[%clk 00:16:40]} {[%emt 00:00:02]} 1/2-1/2

[Event "Chess Festival Groningen 2023 | A"]
[Site "Groningen, Netherlands"]
[Date "2023.12.28"]
[Round "7.17"]
[White "Nagarkatte, Vedant"]
[Black "Jacobs, Florian"]
[Result "0-1"]
[TimeControl "90min/40moves + 30min + 30sec/move"]
[WhiteFideId "25636227"]
[WhiteElo "2320"]
[BlackElo "2218"]

1. e4 {[%clk 01:30:58]} {[%emt 00:00:01]} e5 {[%clk 01:30:50]} {[%emt
00:00:10]} 2. Nf3 {[%clk 01:31:24]} {[%emt 00:00:04]} Nc6 {[%clk 01:31:13]}
{[%emt 00:00:07]} 3. Bc4 {[%clk 01:31:51]} {[%emt 00:00:03]} Bc5 {[%clk
01:31:34]} {[%emt 00:00:09]} 4. c3 {[%clk 01:32:17]} {[%emt 00:00:04]} Nf6
{[%clk 01:31:59]} {[%emt 00:00:06]} 5. d3 {[%clk 01:32:44]} {[%emt 00:00:03]}
d6 {[%clk 01:32:13]} {[%emt 00:00:16]} 6. O-O {[%clk 01:33:03]} {[%emt
00:00:11]} a6 {[%clk 01:32:16]} {[%emt 00:00:26]} 7. a4 {[%clk 01:32:27]}
{[%emt 00:01:05]} Ba7 {[%clk 01:32:39]} {[%emt 00:00:07]} 8. h3 {[%clk
01:31:48]} {[%emt 00:01:09]} h6 {[%clk 01:32:37]} {[%emt 00:00:33]} 9. Re1
{[%clk 01:30:19]} {[%emt 00:01:59]} g5 {[%clk 01:28:37]} {[%emt 00:04:30]} 10.
Nh2 {[%clk 01:28:20]} {[%emt 00:02:29]} g4 {[%clk 01:26:29]} {[%emt 00:02:38]}
11. hxg4 {[%clk 01:11:09]} {[%emt 00:17:42]} Rg8 {[%clk 01:26:45]} {[%emt
00:00:13]} 12. g5 {[%clk 01:03:20]} {[%emt 00:08:20]} hxg5 {[%clk 01:27:06]}
{[%emt 00:00:07]} 13. Be3 {[%clk 01:01:07]} {[%emt 00:02:45]} Bxe3 {[%clk
01:24:24]} {[%emt 00:03:12]} 14. Rxe3 {[%clk 00:55:55]} {[%emt 00:05:41]} Rh8
{[%clk 01:24:32]} {[%emt 00:00:22]} 15. Nd2 {[%clk 00:52:33]} {[%emt 00:03:52]}
Rh6 {[%clk 01:05:32]} {[%emt 00:19:29]} 16. Ndf1 {[%clk 00:52:32]} {[%emt
00:00:32]} Ke7 {[%clk 01:01:50]} {[%emt 00:04:11]} 17. d4 {[%clk 00:12:28]}
{[%emt 00:40:35]} Qh8 {[%clk 00:56:39]} {[%emt 00:05:41]} 18. Be2 {[%clk
00:12:29]} {[%emt 00:00:30]} Qh7 {[%clk 00:54:35]} {[%emt 00:02:33]} 19. d5
{[%clk 00:05:58]} {[%emt 00:07:02]} Na7 {[%clk 00:52:23]} {[%emt 00:02:42]} 20.
Rg3 {[%clk 00:05:17]} {[%emt 00:01:11]} Bd7 {[%clk 00:48:14]} {[%emt 00:04:39]}
21. f3 {[%clk 00:00:54]} {[%emt 00:04:53]} Rh8 {[%clk 00:48:31]} {[%emt
00:00:12]} 22. Qd2 {[%clk 00:00:52]} {[%emt 00:00:33]} g4 {[%clk 00:43:38]}
{[%emt 00:05:22]} 23. Nxg4 {[%clk 00:00:59]} {[%emt 00:00:24]} Bxg4 {[%clk
00:43:49]} {[%emt 00:00:19]} 24. Rxg4 {[%clk 00:01:20]} {[%emt 00:00:09]} Nxg4
{[%clk 00:43:21]} {[%emt 00:00:57]} 25. fxg4 {[%clk 00:01:46]} {[%emt
00:00:05]} Rh1+ {[%clk 00:29:49]} {[%emt 00:14:02]} 26. Kf2 {[%clk 00:02:15]}
{[%emt 00:00:02]} Qh4+ {[%clk 00:30:08]} {[%emt 00:00:10]} 27. Ke3 {[%clk
00:02:38]} {[%emt 00:00:07]} Qg5+ {[%clk 00:15:21]} {[%emt 00:15:17]} 28. Kd3
{[%clk 00:03:03]} {[%emt 00:00:06]} Qxd2+ {[%clk 00:15:46]} {[%emt 00:00:04]}
29. Kxd2 {[%clk 00:03:30]} {[%emt 00:00:04]} Rg1 {[%clk 00:15:16]} {[%emt
00:01:00]} 30. Bf3 {[%clk 00:03:16]} {[%emt 00:00:44]} Nc8 {[%clk 00:10:32]}
{[%emt 00:05:13]} 31. Ke2 {[%clk 00:03:17]} {[%emt 00:00:28]} Nb6 {[%clk
00:09:47]} {[%emt 00:01:15]} 32. Kf2 {[%clk 00:03:17]} {[%emt 00:00:31]} Rgh1
{[%clk 00:10:00]} {[%emt 00:00:16]} 33. b3 {[%clk 00:02:57]} {[%emt 00:00:51]}
Nd7 {[%clk 00:10:15]} {[%emt 00:00:15]} 34. b4 {[%clk 00:02:32]} {[%emt
00:00:55]} Kf6 {[%clk 00:08:35]} {[%emt 00:02:09]} 35. Ra2 {[%clk 00:00:38]}
{[%emt 00:02:25]} Kg5 {[%clk 00:07:43]} {[%emt 00:01:22]} 36. Ne3 {[%clk
00:00:38]} {[%emt 00:00:29]} Rc1 {[%clk 00:07:38]} {[%emt 00:00:35]} 37. c4
{[%clk 00:01:04]} {[%emt 00:00:06]} Rb1 {[%clk 00:07:07]} {[%emt 00:01:00]} 38.
c5 {[%clk 00:01:07]} {[%emt 00:00:27]} Rxb4 {[%clk 00:06:30]} {[%emt 00:01:07]}
39. cxd6 {[%clk 00:01:27]} {[%emt 00:00:11]} cxd6 {[%clk 00:06:40]} {[%emt
00:00:18]} 40. Nf5 {[%clk 00:01:48]} {[%emt 00:00:10]} Nc5 {[%clk 00:03:44]}
{[%emt 00:03:26]} 41. Nxd6 {[%clk 00:01:45]} {[%emt 00:00:33]} Kg6 {[%clk
00:03:54]} {[%emt 00:00:20]} 42. Rc2 {[%clk 00:27:31]} {[%emt 00:04:45]} Rb2
{[%clk 00:21:53]} {[%emt 00:12:30]} 43. Rxb2 {[%clk 00:27:49]} {[%emt
00:00:12]} Nd3+ {[%clk 00:22:21]} 44. Ke3 {[%clk 00:18:06]} {[%emt 00:10:14]}
Nxb2 {[%clk 00:22:42]} {[%emt 00:00:10]} 45. Nxb7 {[%clk 00:18:23]} {[%emt
00:00:13]} Nxa4 {[%clk 00:22:32]} {[%emt 00:00:40]} 46. Be2 {[%clk 00:18:18]}
{[%emt 00:00:35]} Ra8 {[%clk 00:22:24]} {[%emt 00:00:38]} 47. Na5 {[%clk
00:17:58]} {[%emt 00:00:50]} Nc5 {[%clk 00:21:42]} {[%emt 00:01:11]} 48. Bc4
{[%clk 00:16:15]} {[%emt 00:02:14]} f6 {[%clk 00:21:03]} {[%emt 00:01:09]} 49.
Bd3 {[%clk 00:02:35]} {[%emt 00:14:10]} Kg5 {[%clk 00:20:35]} {[%emt 00:00:57]}
50. Be2 {[%clk 00:00:52]} {[%emt 00:02:14]} Rb8 {[%clk 00:19:57]} {[%emt
00:01:07]} 51. Bc4 {[%clk 00:00:52]} {[%emt 00:00:30]} Rb4 {[%clk 00:19:20]}
{[%emt 00:01:06]} 52. Bd3 {[%clk 00:00:39]} {[%emt 00:00:44]} Kxg4 {[%clk
00:16:49]} {[%emt 00:03:01]} 53. Be2+ {[%clk 00:00:34]} {[%emt 00:00:35]} Kg3
{[%clk 00:16:44]} {[%emt 00:00:35]} 54. Bf3 {[%clk 00:00:58]} {[%emt 00:00:07]}
Ra4 {[%clk 00:16:35]} {[%emt 00:00:39]} 55. Nc6 {[%clk 00:01:24]} {[%emt
00:00:04]} Ra3+ {[%clk 00:16:57]} {[%emt 00:00:08]} 56. Ke2 {[%clk 00:01:08]}
{[%emt 00:00:46]} Kf4 {[%clk 00:16:53]} {[%emt 00:00:33]} 57. Nd8 {[%clk
00:00:32]} {[%emt 00:01:06]} Ra2+ {[%clk 00:17:11]} {[%emt 00:00:12]} 58. Kd1
{[%clk 00:00:31]} {[%emt 00:00:32]} Ke3 {[%clk 00:17:22]} {[%emt 00:00:19]} 59.
Ne6 {[%clk 00:00:42]} {[%emt 00:00:19]} Nd3 {[%clk 00:17:30]} {[%emt 00:00:21]}
0-1